bitfinex-derivatives/quotes_BTCF0:USTF0_20210705
["timestamp","ask_amount","ask_price","bid_price","bid_amount"]
[1625509190594,1.77765368,33794.0,33793.0,5.01139812]
[1625509190595,1.26156206,33794.0,33793.0,5.01139812]
[1625509191140,0.9188,33794.0,33793.0,5.01139812]
[1625509192741,0.9188,33794.0,33793.0,4.95239812]
[1625509194447,0.9188,33794.0,33793.0,5.01139812]
[1625509194798,0.9188,33794.0,33793.0,4.95239812]
[1625509195047,0.9188,33794.0,33793.0,5.01139812]
[1625509195249,0.9188,33794.0,33793.0,4.95239812]
[1625509195450,0.9188,33794.0,33793.0,5.01139812]
[1625509196354,0.9188,33794.0,33793.0,5.02259168]
[1625509196907,0.9188,33794.0,33793.0,6.59429827]
[1625509210573,0.9188,33794.0,33793.0,7.55660003]
[1625509217985,0.9188,33794.0,33793.0,7.86793003]
[1625509220193,0.51540352,33798.0,33793.0,7.86793003]
[1625509220492,0.17212458,33797.0,33794.0,0.01120308]
[1625509220593,0.17212458,33797.0,33794.0,0.01470893]
[1625509220694,0.17212458,33797.0,33794.0,0.13270893]
[1625509220793,0.17212458,33797.0,33795.0,0.01470852]
[1625509220995,0.51566121,33798.0,33796.0,6.47927103]
[1625509221093,0.51566121,33798.0,33797.0,4.4462]
[1625509221193,0.51566121,33798.0,33797.0,4.45740277]
[1625509221392,0.51566121,33798.0,33797.0,4.51990867]
[1625509221493,0.85946486,33798.0,33797.0,9.41454847]
[1625509221794,0.85946486,33798.0,33797.0,9.47354847]
[1625509222045,0.51565328,33798.0,33797.0,9.47354847]
[1625509222795,0.51565328,33798.0,33797.0,9.71412391]
[1625509223552,0.51565328,33798.0,33797.0,11.28729599]
[1625509223896,0.51675321,33799.0,33797.0,11.28729599]
[1625509223995,0.51675321,33799.0,33798.0,0.01120106]
[1625509224198,0.51647285,33799.0,33798.0,4.95320721]
[1625509224296,0.51647285,33799.0,33798.0,4.95671304]
[1625509224395,0.51647285,33799.0,33798.0,5.01571304]
[1625509224696,0.86085992,33799.0,33798.0,5.01571304]
[1625509224796,0.91785992,33799.0,33798.0,5.25628848]
[1625509225147,0.57347285,33799.0,33798.0,5.25628848]
[1625509225498,1.26143273,33799.0,33798.0,5.25628848]
[1625509225699,1.26143273,33799.0,33798.0,5.19728848]
[1625509226451,2.29099062,33799.0,33798.0,5.19728848]
[1625509226750,2.29099062,33799.0,33798.0,5.13828848]
[1625509226850,2.53156606,33799.0,33798.0,5.13828848]
[1625509226951,2.54732216,33799.0,33798.0,5.13828848]
[1625509227253,2.60632216,33799.0,33798.0,5.13828848]
[1625509227351,2.60632216,33799.0,33798.0,4.89771304]
[1625509227451,2.66532216,33799.0,33798.0,4.89771304]
[1625509227618,5.23562046,33799.0,33798.0,1.22705763]
[1625509228103,6.77406334,33799.0,33798.0,0.00350583]
[1625509228502,6.77406334,33799.0,33796.0,0.0035068]
[1625509228604,6.98941334,33799.0,33796.0,0.0035068]
[1625509228822,0.01576099,33798.0,33796.0,0.0035068]
[1625509228903,0.25633643,33798.0,33796.0,0.0035068]
[1625509229004,0.057,33797.0,33796.0,0.0035068]
[1625509229153,6.44326134,33797.0,33796.0,0.0035068]
[1625509229254,6.50226134,33797.0,33796.0,0.0035068]
[1625509229355,6.51802256,33797.0,33795.0,0.52454385]
[1625509229606,4.78808241,33796.0,33795.0,0.52454385]
[1625509229704,4.90408241,33796.0,33795.0,0.52454385]
[1625509229804,4.96308241,33796.0,33795.0,0.52454385]
[1625509229905,4.96308241,33796.0,33795.0,0.17835476]
[1625509230105,4.97884414,33796.0,33795.0,0.17484795]
[1625509230507,6.5158075,33796.0,33793.0,0.76512722]
[1625509230906,0.24057544,33794.0,33793.0,0.52455178]
[1625509231008,5.06545564,33794.0,33793.0,0.17485059]
[1625509231107,5.18345564,33794.0,33792.0,0.52441554]
[1625509231562,4.76638792,33793.0,33792.0,0.17480518]
[1625509231658,4.82338792,33793.0,33792.0,0.17480518]
[1625509231757,4.94138792,33793.0,33792.0,0.17480518]
[1625509231857,4.94138792,33793.0,33792.0,0.52439263]
[1625509232058,4.88238792,33793.0,33792.0,0.52439263]
[1625509232610,4.94138792,33793.0,33792.0,0.52439263]
[1625509232810,4.94138792,33793.0,33791.0,0.52441553]
[1625509232811,4.94138792,33793.0,33791.0,0.52423175]
[1625509232909,0.24057544,33792.0,33791.0,0.52423175]
[1625509233009,0.29757544,33792.0,33791.0,0.52423175]
[1625509233122,0.61629544,33792.0,33791.0,0.52423175]
[1625509233213,0.67529544,33792.0,33791.0,0.52423175]
[1625509233360,5.4498977,33792.0,33791.0,0.52423175]
[1625509233511,5.3908977,33792.0,33791.0,0.52423175]
[1625509234063,5.3908977,33792.0,33791.0,0.52773871]
[1625509234663,5.3908977,33792.0,33791.0,1.22658513]
[1625509234664,4.02679869,33792.0,33791.0,1.22658513]
[1625509235276,2.83319075,33792.0,33791.0,2.2747809]
[1625509235715,2.77419075,33792.0,33791.0,2.3337809]
[1625509235817,2.77419075,33792.0,33791.0,3.55655299]
[1625509235818,1.75107387,33792.0,33791.0,3.55655299]
[1625509235913,1.49135387,33792.0,33791.0,3.55655299]
[1625509236367,0.80922009,33792.0,33791.0,3.55655299]
[1625509236515,0.63861506,33792.0,33791.0,3.55655299]
[1625509236971,0.29757544,33792.0,33791.0,4.95397315]
[1625509237367,0.51186966,33793.0,33791.0,4.95397315]
[1625509237468,0.17068006,33793.0,33791.0,5.27760315]
[1625509237567,0.34127226,33794.0,33792.0,0.01119986]
[1625509237568,0.51199366,33794.0,33792.0,0.01119986]
[1625509237733,0.51199366,33794.0,33792.0,0.07019986]
[1625509237818,0.51199366,33794.0,33792.0,0.1327061]
[1625509237916,0.51199366,33794.0,33793.0,0.0111987]
[1625509238118,0.51199366,33794.0,33793.0,0.13270482]
[1625509238322,0.17088365,33796.0,33793.0,5.02393326]
[1625509238519,0.17088365,33796.0,33794.0,0.01119852]
[1625509238622,0.17088365,33796.0,33794.0,0.01470464]
[1625509238720,0.17088365,33796.0,33794.0,0.06250612]
[1625509238823,0.17111755,33797.0,33795.0,4.89454191]
[1625509238920,0.17111755,33797.0,33796.0,0.24057544]
[1625509239125,0.17111755,33797.0,33796.0,0.30308151]
[1625509239222,0.17111755,33797.0,33796.0,0.36208151]
[1625509239323,0.51341359,33799.0,33796.0,5.2644107]
[1625509239523,0.51341359,33799.0,33797.0,0.01119624]
[1625509239621,0.51341359,33799.0,33798.0,3.9365]
[1625509239722,0.51341359,33799.0,33798.0,4.20438]
[1625509239826,0.51341359,33799.0,33798.0,4.32238]
[1625509239924,0.17155495,33802.0,33798.0,10.7999332]
[1625509240122,0.17155495,33802.0,33799.0,0.01119561]
[1625509240223,0.17155495,33802.0,33799.0,0.07370119]
[1625509240424,0.17155495,33802.0,33801.0,4.89068651]
[1625509240624,0.17155495,33802.0,33801.0,5.00868651]
[1625509240723,0.17155495,33802.0,33801.0,5.012192]
[1625509240923,0.85726058,33803.0,33801.0,5.012192]
[1625509240924,0.51450509,33803.0,33801.0,5.012192]
[1625509241023,0.51450509,33803.0,33801.0,5.49334288]
[1625509241224,0.51450509,33803.0,33802.0,0.00350546]
[1625509241326,0.51450509,33803.0,33802.0,0.06250546]
[1625509241427,0.51450509,33803.0,33802.0,0.12150546]
[1625509241527,0.51462708,33804.0,33802.0,5.01130136]
[1625509241778,0.51462708,33804.0,33803.0,0.00350544]
[1625509241877,0.51462708,33804.0,33803.0,0.06250544]
[1625509241976,0.51462708,33804.0,33803.0,0.12150544]
[1625509242277,0.51462708,33804.0,33803.0,5.01135742]
[1625509242980,0.51462708,33804.0,33803.0,5.25193286]
[1625509243881,0.60047747,33804.0,33803.0,5.25193286]
[1625509244589,0.25744989,33804.0,33803.0,5.25193286]
[1625509244987,0.34289448,33804.0,33803.0,3.85483229]
[1625509245485,0.51460226,33804.0,33803.0,3.85483229]
[1625509245742,0.57160226,33804.0,33803.0,3.85483229]
[1625509245884,0.51460226,33804.0,33803.0,3.85483229]
[1625509245984,0.57160226,33804.0,33803.0,3.85483229]
[1625509246085,0.57160226,33804.0,33803.0,5.25137446]
[1625509246437,1.25849906,33804.0,33803.0,3.85483229]
[1625509246537,1.25849906,33804.0,33803.0,2.63236929]
[1625509246843,1.25849906,33804.0,33803.0,2.62886385]
[1625509247237,1.25849906,33804.0,33803.0,3.85085054]
[1625509247688,1.25849906,33804.0,33803.0,3.85435598]
[1625509247888,1.20149906,33804.0,33803.0,3.85435598]
[1625509247989,0.85854487,33804.0,33803.0,3.85435598]
[1625509250346,0.51552493,33804.0,33803.0,3.85435598]
[1625509251902,0.57252493,33804.0,33803.0,3.85435598]
[1625509252203,0.57252493,33804.0,33803.0,3.85085054]
[1625509252463,1.26033944,33804.0,33803.0,3.85085054]
[1625509252805,0.57274145,33804.0,33803.0,3.85085054]
[1625509253261,1.26070512,33804.0,33803.0,3.85085054]
[1625509253757,0.91735372,33804.0,33803.0,3.85085054]
[1625509254358,1.26168964,33804.0,33803.0,3.85085054]
[1625509254760,1.20468964,33804.0,33803.0,3.85085054]
[1625509254858,0.51574145,33804.0,33803.0,3.85085054]
[1625509255860,0.51574145,33804.0,33803.0,3.85435599]
[1625509255962,0.8608614,33804.0,33803.0,3.85435599]
[1625509256563,0.51779536,33804.0,33803.0,3.85435599]
[1625509256911,0.51779536,33804.0,33803.0,3.85085054]
[1625509257213,0.51779536,33804.0,33803.0,3.85435594]
[1625509257612,0.60427037,33804.0,33803.0,5.25038531]
[1625509258315,0.25915042,33804.0,33803.0,5.25038531]
[1625509258513,0.25915042,33804.0,33803.0,5.24687991]
[1625509258815,0.25915042,33804.0,33803.0,5.25038522]
[1625509258917,0.60456794,33804.0,33803.0,3.85435585]
[1625509259015,0.60456794,33804.0,33803.0,3.86553915]
[1625509259467,0.25927312,33808.0,33803.0,6.83151411]
[1625509259667,0.25927312,33808.0,33804.0,0.01118225]
[1625509259771,0.25927312,33808.0,33804.0,0.07018225]
[1625509259867,0.25927312,33808.0,33804.0,0.13268721]
[1625509259967,1.77283819,33809.0,33804.0,0.13268721]
[1625509259968,0.99591875,33809.0,33807.0,4.88472871]
[1625509260067,0.99591875,33809.0,33808.0,4.512]
[1625509260268,0.99591875,33809.0,33808.0,4.571]
[1625509260517,1.16880002,33809.0,33808.0,8.05998523]
[1625509260870,1.16880002,33809.0,33808.0,8.06349002]
[1625509260969,1.51428398,33809.0,33808.0,8.06349002]
[1625509261069,1.51428398,33809.0,33808.0,8.5446409]
[1625509261320,0.9094,33809.0,33808.0,9.93976836]
[1625509261974,0.5491,33809.0,33808.0,9.93976836]
[1625509262087,0.08653713,33811.0,33808.0,9.93976836]
[1625509262179,0.08653713,33811.0,33809.0,0.01117465]
[1625509262472,0.08653713,33811.0,33810.0,0.00350432]
[1625509262573,0.08653713,33811.0,33810.0,0.01467776]
[1625509262681,1.03754554,33814.0,33810.0,0.01467776]
[1625509262682,0.001,33814.0,33810.0,4.95608665]
[1625509262773,0.001,33814.0,33810.0,4.94491321]
[1625509262979,0.001,33814.0,33811.0,0.00350428]
[1625509263075,0.001,33814.0,33813.0,0.24057544]
[1625509263186,0.001,33814.0,33813.0,5.12251851]
[1625509263293,0.69174937,33817.0,33813.0,5.12251851]
[1625509263480,0.69174937,33817.0,33813.0,5.24051851]
[1625509263481,0.25970417,33817.0,33813.0,5.24051851]
[1625509263598,0.25970417,33817.0,33813.0,5.24402249]
[1625509263824,0.25970417,33817.0,33814.0,0.00350398]
[1625509263925,0.51935431,33820.0,33816.0,4.8785016]
[1625509264024,0.51935431,33820.0,33819.0,5.1371]
[1625509264125,1.27876504,33823.0,33819.0,5.1371]
[1625509264310,0.83838197,33824.0,33819.0,5.2551]
[1625509264393,0.83838197,33824.0,33819.0,5.25860386]
[1625509264524,1.55719791,33829.0,33820.0,0.51116066]
[1625509264529,1.2113755,33825.0,33820.0,0.51116066]
[1625509264604,0.4626598,33822.0,33820.0,0.51116066]
[1625509264712,0.24362845,33822.0,33820.0,0.51466414]
[1625509264792,1.00700395,33825.0,33821.0,0.01115968]
[1625509264882,0.87710395,33825.0,33821.0,0.01115968]
[1625509264989,0.87710395,33825.0,33821.0,0.35895968]
[1625509265092,0.76170395,33825.0,33822.0,0.5]
[1625509265226,1.38820011,33837.0,33824.0,0.72172632]
[1625509265298,1.38820011,33837.0,33825.0,0.5]
[1625509265299,1.16820011,33837.0,33825.0,0.5]
[1625509265411,1.16820011,33837.0,33833.0,0.4128]
[1625509265504,1.16820011,33837.0,33833.0,1.57124]
[1625509265600,0.86000011,33837.0,33834.0,0.5]
[1625509265685,0.62940011,33837.0,33834.0,0.5035022]
[1625509265785,0.58220011,33837.0,33834.0,0.5625022]
[1625509265875,0.00890011,33837.0,33834.0,0.6215022]
[1625509265976,0.00890011,33837.0,33835.0,0.00350215]
[1625509266077,1.56060355,33840.0,33835.0,0.00350215]
[1625509266174,1.56060355,33840.0,33839.0,4.8476]
[1625509266276,1.56060355,33840.0,33839.0,5.3476]
[1625509266377,1.49680355,33840.0,33839.0,5.4066]
[1625509266474,1.39840355,33840.0,33839.0,5.41010172]
[1625509266576,1.39840355,33840.0,33839.0,5.4212138]
[1625509266677,1.34190355,33840.0,33839.0,5.4212138]
[1625509266816,1.563292,33855.0,33839.0,5.41771208]
[1625509266879,0.76156678,33852.0,33839.0,5.41771208]
[1625509266981,0.57031003,33852.0,33840.0,0.01111805]
[1625509267078,0.57031003,33852.0,33840.0,0.34706805]
[1625509267181,0.56511003,33852.0,33851.0,0.96230176]
[1625509267280,1.563292,33855.0,33851.0,1.22998176]
[1625509267380,0.057,33859.0,33854.0,4.7679]
[1625509267479,1.73749757,33868.0,33854.0,4.7679]
[1625509267779,1.73749757,33868.0,33854.0,4.8859]
[1625509268087,0.057,33867.0,33854.0,4.8859]
[1625509268187,0.057,33865.0,33854.0,4.8859]
[1625509268293,0.057,33865.0,33854.0,5.3859]
[1625509268782,0.057,33865.0,33854.0,5.4174]
[1625509268991,0.24057544,33873.0,33854.0,5.4174]
[1625509269184,0.057,33872.0,33869.0,0.24057544]
[1625509269284,0.057,33872.0,33869.0,0.51565544]
[1625509269516,0.057,33872.0,33871.0,3.9541]
[1625509269606,0.24057544,33873.0,33871.0,3.9541]
[1625509269801,0.24057544,33881.0,33871.0,3.9541]
[1625509269985,0.29957544,33881.0,33871.0,3.9541]
[1625509270235,0.057,33880.0,33871.0,3.9541]
[1625509270336,0.116,33880.0,33871.0,3.9541]
[1625509270486,0.175,33880.0,33871.0,3.9541]
[1625509270685,0.116,33880.0,33871.0,3.9541]
[1625509270885,0.175,33880.0,33871.0,3.9541]
[1625509271186,0.175,33880.0,33879.0,0.48115088]
[1625509271689,0.175,33880.0,33879.0,0.24057544]
[1625509271792,0.175,33880.0,33874.0,0.24057544]
[1625509272840,5.4393,33880.0,33874.0,0.24057544]
[1625509272942,0.175,33880.0,33874.0,0.24057544]
[1625509273145,0.24057544,33875.0,33874.0,0.24057544]
[1625509273266,0.29757544,33875.0,33874.0,0.24057544]
[1625509273392,0.35657544,33875.0,33874.0,0.24057544]
[1625509273492,0.41557544,33875.0,33874.0,0.24057544]
[1625509274444,0.35657544,33875.0,33874.0,0.24057544]
[1625509274645,0.41557544,33875.0,33874.0,0.24057544]
[1625509276652,0.69741544,33875.0,33874.0,0.24057544]
[1625509277404,0.69741544,33875.0,33866.0,4.28657544]
[1625509277503,0.69741544,33875.0,33866.0,4.046]
[1625509278205,0.69741544,33875.0,33854.0,4.7679]
[1625509278805,0.69741544,33875.0,33854.0,4.8269]
[1625509279208,0.24057544,33862.0,33861.0,0.24057544]
[1625509279308,0.29757544,33862.0,33861.0,0.24057544]
[1625509279409,0.35657544,33862.0,33861.0,0.24057544]
[1625509281221,0.59715088,33862.0,33854.0,5.00847544]
[1625509282022,0.65615088,33862.0,33854.0,5.00847544]
[1625509282274,0.59715088,33862.0,33854.0,5.00847544]
[1625509283274,0.48115088,33855.0,33854.0,5.00847544]
[1625509283474,0.48115088,33855.0,33854.0,5.06747544]
[1625509284930,0.48115088,33855.0,33854.0,5.07097527]
[1625509285033,0.48115088,33862.0,33854.0,5.12997527]
[1625509285129,0.48115088,33862.0,33854.0,5.42095527]
[1625509285230,0.48115088,33862.0,33861.0,0.48115088]
[1625509285330,0.48115088,33862.0,33861.0,0.75786088]
[1625509285433,0.48115088,33862.0,33861.0,0.81686088]
[1625509285981,0.48115088,33862.0,33861.0,0.82036037]
[1625509288188,0.48115088,33862.0,33861.0,0.82910817]
[1625509289989,0.48115088,33862.0,33861.0,0.84660367]
[1625509292492,0.48115088,33862.0,33861.0,0.90560367]
[1625509292946,0.48115088,33862.0,33861.0,0.84660367]
[1625509294849,0.48115088,33862.0,33861.0,0.90560367]
[1625509295960,0.48115088,33862.0,33861.0,0.84660367]
[1625509296158,0.48115088,33862.0,33861.0,0.90560367]
[1625509296604,0.48115088,33862.0,33861.0,0.84660367]
[1625509297105,0.48115088,33862.0,33861.0,0.90560367]
[1625509297203,0.48115088,33862.0,33861.0,0.84660367]
[1625509297355,0.48115088,33862.0,33861.0,0.90560367]
[1625509301066,0.48115088,33862.0,33861.0,0.84660367]
[1625509301166,0.48115088,33862.0,33861.0,0.56989367]
[1625509301289,0.48115088,33862.0,33861.0,0.65959367]
[1625509302568,0.48115088,33862.0,33861.0,0.56989367]
[1625509302669,0.48115088,33862.0,33861.0,0.02974279]
[1625509302770,0.53815088,33862.0,33844.0,1.00095026]
[1625509302872,0.65615088,33862.0,33844.0,1.00095026]
[1625509302974,0.65615088,33862.0,33857.0,0.01224955]
[1625509303072,0.71515088,33862.0,33857.0,0.01224955]
[1625509303372,0.48115088,33858.0,33857.0,0.01224955]
[1625509303472,0.86544088,33858.0,33849.0,0.24057544]
[1625509303573,0.98344088,33858.0,33849.0,0.24057544]
[1625509303673,0.98344088,33858.0,33857.0,0.00350009]
[1625509303774,0.98344088,33858.0,33857.0,0.01225031]
[1625509303973,0.98344088,33858.0,33849.0,0.24057544]
[1625509303974,0.98344088,33858.0,33850.0,0.01225041]
[1625509304276,0.92444088,33858.0,33850.0,0.01225041]
[1625509304376,0.92444088,33858.0,33850.0,0.13025041]
[1625509304377,0.86544088,33858.0,33850.0,0.13025041]
[1625509304528,0.80844088,33858.0,33850.0,0.13025041]
[1625509304644,0.057,33857.0,33850.0,0.13025041]
[1625509304843,0.057,33857.0,33851.0,0.01225006]
[1625509304949,0.057,33857.0,33851.0,0.07125006]
[1625509305028,0.057,33857.0,33851.0,0.13025006]
[1625509305278,0.057,33857.0,33852.0,0.01224985]
[1625509305378,0.24057544,33853.0,33852.0,0.01224985]
[1625509305478,0.29757544,33853.0,33852.0,0.07124985]
[1625509306079,0.29757544,33853.0,33852.0,0.01224985]
[1625509306380,0.29757544,33853.0,33850.0,0.01225036]
[1625509307383,0.24057544,33851.0,33850.0,0.01225036]
[1625509307481,0.61488544,33851.0,33850.0,0.01225036]
[1625509307682,0.67388544,33851.0,33850.0,0.01225036]
[1625509308684,0.61488544,33851.0,33850.0,0.01225036]
[1625509309484,0.55788544,33851.0,33850.0,0.01225036]
[1625509309584,0.61488544,33851.0,33850.0,0.01225036]
[1625509310383,0.67388544,33851.0,33850.0,0.01225036]
[1625509311792,0.73288544,33851.0,33847.0,0.01225192]
[1625509313440,0.24057544,33848.0,33847.0,0.01225192]
[1625509313542,0.41557544,33848.0,33847.0,0.01225192]
[1625509313891,0.35657544,33848.0,33847.0,0.00350055]
[1625509314090,0.41557544,33848.0,33847.0,0.00350055]
[1625509314290,0.35657544,33848.0,33847.0,0.00350055]
[1625509314509,0.41557544,33848.0,33847.0,0.00350055]
[1625509314589,0.73837544,33848.0,33847.0,0.00350055]
[1625509315042,0.67937544,33848.0,33847.0,0.00350055]
[1625509315344,0.73837544,33848.0,33847.0,0.00350055]
[1625509315742,0.73837544,33848.0,33843.0,0.00350108]
[1625509317394,0.48115088,33844.0,33843.0,0.00350108]
[1625509317498,0.53815088,33844.0,33843.0,0.00350108]
[1625509317595,0.59715088,33844.0,33843.0,0.00350108]
[1625509318146,0.48115088,33844.0,33843.0,0.00350108]
[1625509319350,0.48115088,33844.0,33843.0,1.02533983]
[1625509321455,0.53815088,33844.0,33843.0,1.02533983]
[1625509321555,0.53815088,33844.0,33843.0,2.22058884]
[1625509322604,0.59715088,33844.0,33843.0,2.22058884]
[1625509322806,0.53815088,33844.0,33843.0,2.22058884]
[1625509323006,0.59715088,33844.0,33843.0,2.22058884]
[1625509323306,0.53815088,33844.0,33843.0,2.22058884]
[1625509323409,0.53815088,33844.0,33843.0,3.59091945]
[1625509324257,0.59715088,33844.0,33843.0,3.59091945]
[1625509324361,0.59715088,33844.0,33843.0,4.27598082]
[1625509324812,0.59715088,33844.0,33843.0,4.27247974]
[1625509325311,0.59715088,33844.0,33843.0,4.27598081]
[1625509326112,0.53815088,33844.0,33843.0,4.27598081]
[1625509329023,0.53815088,33844.0,33843.0,5.82150686]
[1625509330073,0.53915088,33844.0,33843.0,5.82150686]
[1625509332730,0.53915088,33844.0,33843.0,4.27598081]
[1625509338799,0.59815088,33844.0,33843.0,4.27598081]
[1625509338897,0.74575088,33844.0,33843.0,4.27598081]
[1625509339048,0.74575088,33844.0,33843.0,0.68856244]
[1625509339146,0.65715088,33844.0,33843.0,0.37901657]
[1625509339552,0.65715088,33844.0,33843.0,0.00350107]
[1625509339846,0.65715088,33844.0,33842.0,0.00350128]
[1625509339998,0.59815088,33844.0,33842.0,0.00350128]
[1625509341501,0.65715088,33844.0,33842.0,0.00350128]
[1625509341702,0.24057544,33843.0,33842.0,0.00350128]
[1625509341802,0.52777544,33843.0,33842.0,0.00350128]
[1625509341902,0.58677544,33843.0,33842.0,0.00350128]
[1625509342304,0.64577544,33843.0,33842.0,0.00350128]
[1625509342403,0.58677544,33843.0,33842.0,0.00350128]
[1625509344062,0.58677544,33843.0,33836.0,0.0035013]
[1625509344312,0.58677544,33843.0,33835.0,1.78387011]
[1625509344313,0.58677544,33843.0,33842.0,0.00350133]
[1625509344618,0.58677544,33843.0,33836.0,0.00350133]
[1625509345114,0.64577544,33843.0,33836.0,0.00350133]
[1625509345724,0.48115088,33837.0,33836.0,0.00350133]
[1625509345817,0.59715088,33837.0,33836.0,0.00350133]
[1625509346367,0.65615088,33837.0,33836.0,0.00350133]
[1625509346769,0.65615088,33837.0,33834.0,0.00350168]
[1625509346969,0.65615088,33837.0,33836.0,0.00350174]
[1625509347070,0.65615088,33837.0,33830.0,1.54441874]
[1625509347271,0.65615088,33837.0,33835.0,0.00350184]
[1625509347596,0.65615088,33837.0,33813.0,3.30912915]
[1625509347597,0.65615088,33837.0,33831.0,0.00350207]
[1625509347720,0.48115088,33832.0,33831.0,0.00350207]
[1625509347821,0.79752088,33832.0,33827.0,0.00350205]
[1625509347922,0.91552088,33832.0,33827.0,0.00350205]
[1625509348121,0.91552088,33832.0,33831.0,0.00350223]
[1625509348321,0.91552088,33832.0,33825.0,0.00350236]
[1625509348621,0.91552088,33832.0,33831.0,0.00350256]
[1625509348821,0.91552088,33832.0,33825.0,0.00350259]
[1625509349172,0.91552088,33832.0,33831.0,0.00350261]
[1625509349373,0.91552088,33832.0,33826.0,0.0035027]
[1625509349676,0.91552088,33832.0,33825.0,0.0035028]
[1625509349776,0.48115088,33826.0,33825.0,0.0035028]
[1625509349875,0.59715088,33826.0,33825.0,0.0035028]
[1625509349976,0.65615088,33826.0,33821.0,1.5541494]
[1625509350181,0.65615088,33826.0,33825.0,0.00350287]
[1625509350498,0.59715088,33826.0,33825.0,0.00350287]
[1625509350612,0.53815088,33826.0,33825.0,0.00350287]
[1625509353633,0.48115088,33826.0,33825.0,0.00350287]
[1625509354234,0.53815088,33826.0,33825.0,0.00350287]
[1625509354337,0.53815088,33826.0,33825.0,2.93397343]
[1625509354787,0.48115088,33826.0,33825.0,2.93397343]
[1625509354885,0.48115088,33826.0,33825.0,2.99297343]
[1625509355038,0.48115088,33826.0,33825.0,3.00397406]
[1625509355388,0.48115088,33826.0,33825.0,3.51985662]
[1625509355592,0.53815088,33826.0,33825.0,3.46085662]
[1625509355688,0.53815088,33826.0,33825.0,3.44985599]
[1625509356240,0.53815088,33826.0,33825.0,3.46085491]
[1625509356390,0.53815088,33826.0,33825.0,3.51985491]
[1625509356891,0.53815088,33826.0,33825.0,3.46085491]
[1625509356991,0.53815088,33826.0,33825.0,3.51985491]
[1625509357193,0.53815088,33826.0,33825.0,3.46085491]
[1625509357699,0.48115088,33826.0,33825.0,3.46085491]
[1625509359099,0.53815088,33826.0,33825.0,3.46085491]
[1625509359301,0.53815088,33826.0,33825.0,4.65167729]
[1625509359799,0.53815088,33826.0,33825.0,3.1002517]
[1625509361200,0.53815088,33826.0,33825.0,3.11126005]
[1625509361301,0.53815088,33826.0,33825.0,3.36634005]
[1625509361703,0.48115088,33826.0,33825.0,3.36634005]
[1625509361803,0.48115088,33826.0,33825.0,4.91437676]
[1625509361902,0.48115088,33826.0,33825.0,4.97337676]
[1625509363606,0.48115088,33826.0,33825.0,6.69104204]
[1625509364567,0.54015088,33826.0,33825.0,6.69104204]
[1625509364662,0.54015088,33826.0,33825.0,6.63204204]
[1625509364763,0.48115088,33826.0,33825.0,6.63204204]
[1625509364912,0.48115088,33826.0,33825.0,6.62853917]
[1625509365026,0.48115088,33826.0,33825.0,4.9143759]
[1625509365136,0.48115088,33826.0,33825.0,4.9733759]
[1625509365315,0.48115088,33826.0,33825.0,5.0323759]
[1625509365512,0.48115088,33826.0,33825.0,6.74956042]
[1625509366117,0.48115088,33826.0,33825.0,6.75831433]
[1625509367333,0.057,33839.0,33825.0,6.75831433]
[1625509367419,0.116,33839.0,33831.0,3.7363]
[1625509367517,0.9394,33841.0,33831.0,3.7363]
[1625509367619,0.9394,33841.0,33832.0,0.01095928]
[1625509367761,0.9394,33841.0,33838.0,3.0884866]
[1625509367817,0.9394,33841.0,33839.0,0.01094795]
[1625509367919,0.8834,33841.0,33840.0,0.96230176]
[1625509368017,0.8834,33841.0,33840.0,0.97324545]
[1625509368118,0.8834,33841.0,33840.0,1.03224545]
[1625509368220,0.8834,33841.0,33840.0,3.77266543]
[1625509368322,0.8834,33841.0,33840.0,5.65429728]
[1625509369621,0.8834,33841.0,33840.0,6.68003259]
[1625509370022,0.8834,33841.0,33840.0,8.38852688]
[1625509370371,0.8834,33841.0,33840.0,8.32952688]
[1625509370976,0.8834,33841.0,33840.0,6.62103259]
[1625509371177,0.8834,33841.0,33840.0,6.68003259]
[1625509371425,0.8834,33841.0,33840.0,6.62103259]
[1625509371626,0.8834,33841.0,33840.0,6.68003259]
[1625509371726,0.8834,33841.0,33840.0,6.62103259]
[1625509371828,0.8834,33841.0,33840.0,6.68003259]
[1625509372028,0.8834,33841.0,33840.0,6.62103259]
[1625509372128,0.8834,33841.0,33840.0,6.68003259]
[1625509372932,0.8834,33841.0,33840.0,6.62103259]
[1625509373531,0.9404,33841.0,33840.0,6.62103259]
[1625509373630,0.9404,33841.0,33840.0,6.6100889]
[1625509374183,0.9404,33841.0,33840.0,5.07057193]
[1625509374333,0.8834,33841.0,33840.0,5.07057193]
[1625509374483,0.8834,33841.0,33840.0,5.12957193]
[1625509374582,0.8834,33841.0,33840.0,6.68116905]
[1625509374682,0.8834,33841.0,33840.0,6.62216905]
[1625509374984,0.8834,33841.0,33840.0,6.68116905]
[1625509375086,0.8834,33841.0,33840.0,6.62216905]
[1625509375185,0.8834,33841.0,33840.0,6.61122116]
[1625509376337,0.8834,33841.0,33840.0,6.67022116]
[1625509376436,0.8834,33841.0,33840.0,6.61122116]
[1625509376537,0.8834,33841.0,33840.0,6.62216488]
[1625509376838,0.8834,33841.0,33840.0,6.61122116]
[1625509377038,0.8834,33841.0,33840.0,6.62216747]
[1625509377340,0.9404,33841.0,33840.0,6.62216747]
[1625509377439,0.9404,33841.0,33840.0,6.61122116]
[1625509377943,0.9404,33841.0,33840.0,5.07057193]
[1625509378642,0.9404,33841.0,33840.0,6.61174042]
[1625509379143,0.9404,33841.0,33840.0,5.07057193]
[1625509379898,1.16464,33841.0,33840.0,5.07057193]
[1625509381805,1.16464,33841.0,33840.0,6.59557254]
[1625509382408,1.16464,33841.0,33840.0,5.12957193]
[1625509382508,1.16464,33841.0,33840.0,5.07057193]
[1625509382807,1.16464,33841.0,33840.0,6.59598142]
[1625509382907,0.9404,33841.0,33840.0,6.59598142]
[1625509383009,0.8834,33841.0,33840.0,6.59598142]
[1625509383307,0.8834,33841.0,33840.0,6.60681597]
[1625509383659,0.8834,33841.0,33840.0,6.66581597]
[1625509384258,0.8834,33841.0,33840.0,6.60681597]
[1625509384509,0.8834,33841.0,33840.0,6.66581597]
[1625509385513,0.8834,33841.0,33840.0,6.60681597]
[1625509385715,0.8834,33841.0,33840.0,6.66581597]
[1625509386116,0.8834,33841.0,33840.0,6.60681597]
[1625509386316,0.8834,33841.0,33840.0,6.66581597]
[1625509390879,0.8834,33841.0,33840.0,6.65498142]
[1625509391279,0.8834,33841.0,33840.0,6.66573287]
[1625509391679,0.8834,33841.0,33840.0,7.03273287]
[1625509392383,0.001,33844.0,33840.0,7.03273287]
[1625509392529,0.001,33844.0,33840.0,8.70956674]
[1625509392586,0.001,33844.0,33841.0,0.01071477]
[1625509392681,0.001,33844.0,33841.0,0.02296543]
[1625509392782,0.001,33844.0,33841.0,0.14096543]
[1625509392883,0.001,33844.0,33842.0,0.01070107]
[1625509392984,0.001,33844.0,33842.0,0.12870107]